bitfinex/quotes_ETHUSD_20251122
["timestamp","ask_amount","ask_price","bid_price","bid_amount"]
[1763789177921,0.002,2735.6,2735.5,0.903804]
[1763789178121,0.002,2735.6,2735.5,2.29749664]
[1763789178531,0.002,2735.6,2735.5,5.95313546]
[1763789178730,0.002,2735.6,2735.5,2.90521019]
[1763789179157,0.002,2735.6,2735.5,2.42149664]
[1763789180328,0.002,2735.6,2735.5,6.07713546]
[1763789181260,0.002,2735.6,2735.5,2.42149664]
[1763789181468,0.002,2735.6,2735.5,6.07713546]
[1763789183834,0.002,2735.6,2735.5,5.95313546]
[1763789184154,0.002,2735.6,2735.5,7.78496478]
[1763789188790,0.002,2735.6,2735.5,14.77979122]
[1763789189202,0.002,2735.6,2735.5,17.66696718]
[1763789191510,0.002,2735.6,2735.5,14.06955396]
[1763789192514,0.002,2735.6,2735.5,17.56696718]
[1763789192668,0.002,2735.7,2735.6,4.0976726]
[1763789192868,0.002,2735.7,2735.6,8.34865901]
[1763789193073,0.002,2735.7,2735.6,8.44865901]
[1763789193714,0.002,2735.7,2735.6,18.5741642]
[1763789194219,0.002,2735.7,2735.6,18.72060093]
[1763789195685,0.002,2735.7,2735.6,18.4497642]
[1763789196010,0.002,2735.7,2735.6,18.5497642]
[1763789196401,0.002,2735.7,2735.6,22.4067642]
[1763789196635,0.002,2735.7,2735.6,18.5497642]
[1763789197920,0.002,2735.7,2735.6,18.4497642]
[1763789198539,0.002,2735.7,2735.6,17.9874642]
[1763789198848,0.002,2735.9,2735.8,7.59308582]
[1763789199050,0.002,2735.9,2735.8,11.21045408]
[1763789201547,0.002,2735.9,2735.8,14.86569203]
[1763789201913,0.002,2735.9,2735.8,14.96569203]
[1763789202729,0.002,2735.9,2735.8,18.93563487]
[1763789203138,0.002,2736.0,2735.9,1.31249664]
[1763789203444,0.002,2736.0,2735.9,15.71394586]
[1763789203673,0.002,2736.0,2735.9,15.24141624]
[1763789204088,0.002,2736.0,2735.9,18.73882946]
[1763789204244,0.002,2736.3,2736.2,11.18649904]
[1763789204444,0.002,2736.9,2736.3,1.31249664]
[1763789204643,0.002,2736.9,2736.5,4.90990986]
[1763789204844,0.1882,2736.9,2736.5,7.71308582]
[1763789205032,0.9372,2736.6,2736.5,7.58908582]
[1763789205234,0.9372,2736.6,2736.5,7.71308582]
[1763789205871,0.002,2736.6,2736.5,7.71308582]
[1763789206069,0.002,2736.6,2736.5,13.3248798]
[1763789207869,0.002,2736.6,2736.5,9.67057686]
[1763789208279,0.4841,2736.6,2736.5,9.07557686]
[1763789208575,0.9372,2736.6,2736.5,0.90699264]
[1763789208872,0.9372,2736.6,2736.5,1.03099264]
[1763789210384,0.9372,2736.6,2736.5,0.90699264]
[1763789210950,0.9372,2736.6,2735.8,3.71637596]
[1763789211153,0.9372,2736.6,2736.1,3.49741322]
[1763789211154,0.4866,2736.5,2736.1,3.49741322]
[1763789211353,0.4866,2736.5,2735.7,2.77917596]
[1763789211354,0.4531,2736.5,2735.6,1.0612]
[1763789211671,0.4531,2736.5,2735.7,0.90699264]
[1763789212173,0.4821,2735.8,2735.7,0.90699264]
[1763789214371,0.002,2736.6,2735.7,1.37799264]
[1763789214681,0.002,2736.6,2736.3,3.49741322]
[1763789214984,0.4821,2736.4,2736.3,3.49741322]
[1763789215154,0.002,2736.6,2736.4,1.31249664]
[1763789215486,0.002,2736.6,2736.3,7.11882644]
[1763789215487,0.002,2736.6,2736.5,5.28090986]
[1763789215688,0.002,2736.6,2736.5,6.21737217]
[1763789216870,0.002,2736.6,2736.5,2.71995895]
[1763789217452,0.002,2736.6,2736.5,2.31445495]
[1763789217659,0.002,2736.6,2736.5,9.61573785]
[1763789217965,0.002,2736.7,2736.6,1.41249664]
[1763789218151,0.002,2736.7,2736.6,11.44881337]
[1763789218337,0.002,2736.7,2736.6,11.91111337]
[1763789218785,0.002,2736.7,2736.6,3.12050072]
[1763789218946,0.002,2736.7,2736.6,1.78349664]
[1763789219989,0.4841,2736.7,2736.6,1.43649664]
[1763789220660,0.002,2736.7,2736.6,1.43649664]
[1763789220856,0.9372,2736.7,2736.6,0.90699264]
[1763789221055,0.9372,2736.7,2736.6,0.124]
[1763789222668,0.9372,2736.7,2736.3,2.77917596]
[1763789222669,0.9372,2736.7,2736.3,0.90699264]
[1763789222910,0.9372,2736.7,2736.2,2.77917596]
[1763789222911,0.4821,2736.4,2735.9,2.77917596]
[1763789223108,0.0437,2736.3,2736.2,0.124]
[1763789223605,0.4968,2736.3,2736.2,0.124]
[1763789225313,0.002,2736.7,2736.2,0.595]
[1763789225472,0.4896,2736.3,2736.2,0.124]
[1763789225901,0.9622,2736.3,2736.2,0.124]
[1763789226482,0.4896,2736.3,2736.2,0.124]
[1763789227123,0.4726,2736.6,2736.2,0.124]
[1763789227442,0.4726,2736.6,2736.2,0.96128949]
[1763789228025,0.002,2736.7,2736.2,0.96128949]
[1763789228227,0.002,2736.7,2736.3,1.38189264]
[1763789229940,0.002,2736.7,2736.3,0.90699264]
[1763789231330,0.002,2736.7,2736.3,4.56152016]
[1763789231526,0.002,2736.7,2736.6,0.4594]
[1763789231728,0.002,2736.7,2736.6,0.5834]
[1763789231926,0.002,2736.7,2736.6,1.93825086]
[1763789232311,0.002,2736.7,2736.6,5.59242026]
[1763789232852,0.002,2736.7,2736.6,1.46335086]
[1763789233801,0.002,2736.7,2736.6,1.93825086]
[1763789235030,0.002,2736.7,2736.6,6.4994129]
[1763789237309,0.002,2736.7,2736.6,9.27858886]
[1763789237523,0.002,2736.9,2736.8,1.31249664]
[1763789237710,0.002,2736.9,2736.8,3.84322213]
[1763789238134,0.4916,2736.9,2736.8,2.97831813]
[1763789238310,0.6885,2736.9,2736.8,1.03099264]
[1763789238508,1.1611,2736.9,2736.8,1.03099264]
[1763789241050,0.6885,2736.9,2736.8,1.03099264]
[1763789241851,0.002,2736.9,2736.8,5.144295]
[1763789242015,0.002,2736.9,2736.8,5.75416038]
[1763789243245,0.002,2736.9,2736.8,10.28846674]
[1763789244135,0.002,2736.9,2736.8,10.38846674]
[1763789244848,0.002,2736.9,2736.8,9.35416674]
[1763789245154,0.002,2736.9,2736.8,9.81356674]
[1763789246269,0.4916,2736.9,2736.8,5.70026438]
[1763789247671,0.4916,2736.9,2736.8,5.17076038]
[1763789247968,0.4916,2736.9,2736.8,5.29476038]
[1763789248161,0.9642,2736.9,2736.8,5.29476038]
[1763789248353,1.1611,2736.9,2736.8,5.29476038]
[1763789248964,1.1611,2736.9,2736.2,2.77717596]
[1763789249137,0.479,2736.8,2736.3,0.124]
[1763789249341,0.4847,2736.4,2736.3,0.124]
[1763789250043,0.4847,2736.4,2736.3,1.03099264]
[1763789250263,0.4847,2736.4,2736.3,0.124]
[1763789251181,0.4726,2736.8,2736.3,1.8683649]
[1763789251478,0.4726,2736.8,2736.3,0.5834]
[1763789252172,0.4896,2736.4,2736.3,0.124]
[1763789252378,0.4726,2736.8,2736.3,1.03099264]
[1763789253775,0.4726,2736.8,2736.4,0.90699264]
[1763789254684,0.4896,2736.5,2736.3,0.124]
[1763789255114,0.4896,2736.5,2736.4,2.77717596]
[1763789255270,0.4896,2736.5,2736.4,4.43044894]
[1763789256612,0.4726,2736.8,2736.5,0.90699264]
[1763789257107,0.4911,2736.6,2736.5,0.90699264]
[1763789258287,0.4911,2736.6,2736.5,0.90799264]
[1763789259985,0.4726,2736.8,2736.5,0.90799264]
[1763789260192,0.4726,2736.8,2736.5,2.1035742]
[1763789260815,0.4911,2736.6,2736.5,2.1035742]
[1763789261010,0.4911,2736.6,2736.5,4.88075016]
[1763789263119,0.002,2736.9,2736.5,9.0308531]
[1763789263423,0.002,2736.9,2736.8,1.40279264]
[1763789263831,0.002,2736.9,2736.8,1.89799264]
[1763789264145,0.002,2736.9,2736.8,0.90699264]
[1763789265241,0.002,2736.9,2736.8,1.40279264]
[1763789265611,0.4908,2736.9,2736.8,0.90699264]
[1763789266212,0.002,2736.9,2736.8,2.38113516]
[1763789266910,0.002,2736.9,2736.8,5.15831112]
[1763789267748,0.002,2736.9,2736.8,8.81221348]
[1763789268076,0.002,2736.9,2736.8,9.30741348]
[1763789268275,0.002,2736.9,2736.8,9.40741348]
[1763789268666,0.002,2736.9,2736.8,9.30741348]
[1763789272241,0.002,2737.2,2737.1,0.90699264]
[1763789272446,0.002,2737.2,2737.1,5.88785805]
[1763789272648,0.002,2737.2,2737.1,6.38305805]
[1763789273658,0.002,2737.2,2737.1,9.15623401]
[1763789273955,0.002,2737.2,2737.1,9.25623401]
[1763789274159,0.002,2737.2,2737.1,12.90973589]
[1763789275381,0.002,2737.2,2737.1,19.37973589]
[1763789277469,0.002,2737.5,2737.2,0.4958]
[1763789277809,0.002,2737.5,2737.4,4.34176855]
[1763789278011,0.002,2737.5,2737.4,4.46576855]
[1763789278219,0.002,2737.6,2737.5,4.65996067]
[1763789278523,0.002,2737.6,2737.5,5.65096067]
[1763789278822,0.002,2737.6,2737.5,8.42413663]
[1763789279025,0.002,2737.6,2737.5,10.7040414]
[1763789279345,0.002,2737.6,2737.5,10.1088414]
[1763789279980,0.4932,2737.6,2737.5,5.96007337]
[1763789280206,0.9488,2737.6,2737.5,3.8041686]
[1763789280785,0.9488,2737.6,2737.5,7.29749033]
[1763789281211,0.002,2737.6,2737.5,7.79329033]
[1763789281379,0.002,2737.6,2737.5,15.43478009]
[1763789281582,0.002,2737.6,2737.5,14.93958009]
[1763789281777,0.002,2737.6,2737.5,13.61502315]
[1763789282020,0.002,2737.6,2737.5,9.96205512]
[1763789282218,0.002,2737.6,2737.5,13.61502315]
[1763789282625,0.002,2737.6,2737.5,17.60354488]
[1763789282923,0.002,2737.6,2737.5,15.38623771]
[1763789284353,0.6718,2738.5,2737.8,0.1]
[1763789284544,0.6718,2738.5,2738.1,4.66933629]
[1763789284745,0.6718,2738.5,2738.2,0.96615336]
[1763789285227,0.4729,2738.3,2738.2,0.96615336]
[1763789285422,0.4729,2738.3,2738.2,0.124]
[1763789285654,0.9387,2738.3,2738.2,0.124]
[1763789286514,0.4729,2738.3,2738.2,0.124]
[1763789286716,0.1981,2738.5,2738.2,5.17448511]
[1763789286952,0.4658,2738.6,2738.2,5.17448511]
[1763789287133,0.4658,2738.6,2738.3,1.00336214]
[1763789287616,0.405504,2738.5,2738.3,1.00336214]
[1763789287957,0.1918,2738.7,2738.3,1.00336214]
[1763789288140,0.597304,2738.7,2738.3,1.00336214]
[1763789288345,1.063104,2738.7,2738.3,1.10336214]
[1763789288659,1.063104,2738.7,2738.4,1.48562736]
[1763789288955,0.597304,2738.7,2738.5,1.03099264]
[1763789289168,0.405504,2738.7,2738.5,1.03099264]
[1763789289311,0.405504,2738.7,2738.6,0.4915]
[1763789289514,0.002,2739.8,2738.6,0.9476]
[1763789289515,0.652,2739.1,2738.6,0.9476]
[1763789289753,0.4658,2739.3,2739.0,0.90699264]
[1763789289950,0.6576,2739.3,2739.1,0.124]
[1763789290216,0.407504,2739.2,2739.1,0.124]
[1763789290416,0.866704,2739.2,2739.1,0.124]
[1763789290669,1.332504,2739.2,2739.1,0.124]
[1763789291062,1.332504,2739.2,2739.0,0.90699264]
[1763789291259,0.898004,2739.1,2739.0,1.03099264]
[1763789293578,0.898004,2739.1,2739.0,3.8041686]
[1763789294192,0.898004,2739.1,2739.0,4.32853072]
[1763789294508,0.002,2739.2,2739.0,8.47099822]
[1763789294695,0.002,2739.2,2739.1,0.4915]
[1763789295069,0.002,2739.2,2739.1,5.04932685]
[1763789295277,0.002,2739.2,2739.1,1.39849264]
[1763789295566,0.002,2739.2,2739.1,2.11572175]
[1763789295984,0.002,2739.2,2739.1,5.76655596]
[1763789296362,0.002,2739.2,2739.1,2.11572175]
[1763789296765,0.002,2739.2,2739.1,5.76655596]
[1763789297172,0.002,2739.2,2739.1,6.41755596]
[1763789297672,0.002,2739.5,2739.1,10.06839017]
[1763789297873,0.002,2739.8,2739.4,6.06782893]
[1763789298085,0.002,2739.8,2739.7,0.5915]
[1763789298286,0.002,2739.8,2739.7,0.124]
[1763789298487,0.4612,2739.8,2739.7,0.124]
[1763789298871,0.927,2739.8,2739.7,0.124]
[1763789299071,1.332504,2739.8,2739.7,0.124]
[1763789299516,0.405504,2739.7,2739.2,1.43677098]
[1763789299798,0.405504,2739.2,2739.1,5.27503506]
[1763789300004,0.0311,2739.2,2739.1,1.74822175]
[1763789300373,0.0311,2739.2,2739.1,5.39905596]
[1763789301718,0.002,2739.8,2739.1,9.99749017]
[1763789301719,0.407504,2739.8,2739.1,9.99749017]
[1763789301872,0.407504,2739.8,2739.7,0.90699264]
[1763789302080,0.002,2739.8,2739.7,1.03099264]
[1763789302280,0.405504,2739.7,2739.5,0.124]
[1763789302505,0.432204,2739.7,2739.5,0.124]
[1763789302687,1.326204,2739.6,2739.5,0.124]
[1763789303017,0.860404,2739.6,2739.5,0.124]
[1763789304215,1.326204,2739.6,2739.5,0.124]
[1763789304422,0.002,2739.8,2739.5,9.84213007]
[1763789304594,0.002,2739.8,2739.6,1.89120565]
[1763789304783,0.407504,2739.8,2739.7,0.4915]
[1763789304985,0.002,2739.8,2739.7,0.4915]
[1763789305425,0.002,2739.8,2739.7,5.04852731]
[1763789306513,0.002,2739.8,2739.7,5.50462731]
[1763789306737,0.002,2739.8,2739.7,7.0078607]
[1763789307294,0.002,2740.0,2739.9,0.1]
[1763789307621,0.002,2740.0,2739.9,9.94159716]
[1763789307777,0.002,2740.0,2739.9,10.39769716]
[1763789307982,0.002,2740.0,2739.9,6.19182893]
[1763789308182,0.002,2740.0,2739.9,10.61110339]
[1763789308380,0.002,2740.0,2739.9,11.16720339]
[1763789308892,0.002,2740.0,2739.9,9.98367899]
[1763789309855,0.002,2740.3,2740.0,0.90699264]
[1763789310020,0.002,2740.6,2740.3,1.00699264]
[1763789310349,1.31019408,2742.0,2740.7,0.1]
[1763789310350,0.4658,2741.2,2740.7,0.1]
[1763789310553,0.4658,2741.2,2740.9,0.90699264]
[1763789310843,0.405504,2741.2,2740.9,4.39280453]
[1763789311164,0.4658,2741.4,2740.9,5.34040453]
[1763789311449,0.1918,2741.7,2741.4,1.00699264]
[1763789311610,0.1918,2741.9,2741.6,6.97162378]
[1763789311809,0.6576,2742.1,2741.6,6.97162378]
[1763789311810,0.1918,2742.1,2741.8,6.97162378]
[1763789312010,0.1918,2742.1,2742.0,3.48581189]
[1763789312411,1.522304,2742.1,2742.0,3.48581189]
[1763789312605,1.1168,2742.1,2742.0,3.48581189]
[1763789312824,0.405504,2742.0,2741.9,0.124]
[1763789313028,0.405504,2742.0,2741.9,0.69268497]
[1763789313224,0.4592,2742.0,2741.9,0.69268497]
[1763789313948,0.864704,2742.0,2741.9,0.124]
[1763789314165,0.864704,2742.0,2741.4,3.64774177]
[1763789314166,0.405504,2741.9,2741.3,4.65585701]
[1763789314312,1.102204,2741.9,2741.4,1.03099264]
[1763789314516,1.063104,2741.9,2741.4,1.03099264]
[1763789314725,0.864704,2741.5,2741.4,1.03099264]
[1763789315156,1.330504,2741.5,2741.4,1.03099264]
[1763789315360,1.330504,2741.5,2741.0,3.64829579]
[1763789315361,0.405504,2741.4,2741.0,0.90699264]
[1763789315516,0.918804,2741.4,2741.1,0.124]
[1763789315714,0.444604,2741.4,2741.1,0.124]
[1763789316754,0.1918,2741.9,2741.1,0.124]
[1763789316755,0.405504,2741.8,2741.3,0.4966]
[1763789316981,0.405504,2741.8,2741.4,1.03099264]
[1763789317182,0.405504,2741.6,2741.4,1.03099264]
[1763789317387,0.878004,2741.5,2741.4,1.03099264]
[1763789317555,0.405504,2741.4,2741.0,0.90699264]
[1763789317758,0.881504,2741.4,2741.1,0.124]
[1763789318081,0.1918,2741.9,2741.1,0.69268497]
[1763789318082,0.405504,2741.6,2741.1,0.69268497]
[1763789318449,0.405504,2741.4,2741.1,0.69268497]
[1763789318762,0.405504,2741.2,2741.1,0.124]
[1763789319368,1.358704,2741.2,2741.1,0.124]
[1763789320283,0.405504,2741.1,2741.0,0.90699264]
[1763789320445,0.416804,2741.1,2741.0,0.124]
[1763789320646,0.0113,2741.1,2741.0,1.03099264]
[1763789320840,0.405504,2741.3,2741.0,1.03099264]
[1763789321369,0.405504,2741.3,2740.6,4.13932615]
[1763789321370,0.405504,2741.0,2740.6,0.90699264]
[1763789321571,0.416804,2741.0,2740.7,0.124]
[1763789321746,0.405504,2740.7,2740.2,0.878004]
[1763789321953,0.417204,2740.7,2740.3,0.124]
[1763789322248,0.897904,2740.7,2740.4,0.90699264]
[1763789322660,0.405504,2740.7,2740.4,0.90699264]
[1763789322854,0.405504,2740.7,2740.3,1.03099264]
[1763789323056,0.886204,2740.7,2740.4,0.51708551]
[1763789323270,0.4725,2740.4,2740.3,0.124]
[1763789323666,0.405504,2740.3,2740.2,4.55632677]
[1763789323874,0.412604,2740.3,2740.2,0.124]
[1763789324085,0.412604,2740.3,2740.2,1.03099264]
[1763789324587,0.405504,2740.2,2740.1,0.90699264]
[1763789324746,0.405504,2740.1,2739.8,8.30575846]
[1763789324941,0.196,2740.8,2739.9,2.23656855]
[1763789325186,0.405504,2740.5,2739.9,2.33656855]
[1763789325358,0.405504,2740.6,2739.9,2.33656855]
[1763789325554,0.886204,2740.6,2739.9,2.33656855]
[1763789325802,0.886204,2740.6,2740.0,1.0642327]
[1763789325945,0.405504,2740.4,2739.8,4.65585701]
[1763789326148,0.0071,2739.9,2739.8,5.56284965]
[1763789326454,0.2031,2739.9,2739.8,0.124]
[1763789326658,1.089304,2739.9,2739.8,0.124]
[1763789327177,0.405504,2739.9,2739.8,0.6206]
[1763789327350,0.405504,2739.9,2739.8,5.79423105]
[1763789328090,0.405504,2739.9,2739.8,6.28473105]
[1763789328456,0.405504,2739.9,2739.8,10.94162514]
[1763789328651,0.405504,2739.9,2739.8,7.29172369]
[1763789328879,0.405504,2739.9,2739.8,6.70122369]
[1763789329779,0.405504,2739.9,2739.8,3.6801686]
[1763789329958,0.876304,2739.9,2739.8,3.8041686]
[1763789330490,0.405504,2739.9,2739.8,3.8041686]
[1763789330891,0.876404,2739.9,2739.8,3.8041686]
[1763789331089,1.552904,2739.9,2739.8,3.6801686]
[1763789331254,0.405504,2739.8,2739.7,2.77317596]
[1763789331453,0.886204,2739.8,2739.7,2.89717596]
[1763789331655,1.357004,2739.8,2739.7,0.124]
[1763789333093,0.405504,2740.0,2739.7,0.124]
[1763789333319,0.876404,2739.8,2739.7,0.124]
[1763789334290,0.876404,2739.8,2739.7,0.69288496]
[1763789334828,0.4807,2740.4,2739.8,0.90699264]
[1763789335012,0.4807,2740.4,2740.0,0.90699264]
[1763789335214,0.405504,2740.3,2740.1,0.124]
[1763789335590,0.876304,2740.2,2740.1,0.124]
[1763789335804,0.876304,2740.2,2740.1,0.69268497]
[1763789337829,1.356904,2740.2,2740.1,0.124]
[1763789339032,0.405504,2740.1,2740.0,0.90699264]
[1763789339218,0.891004,2740.1,2740.0,1.03099264]
[1763789340532,0.891004,2740.1,2739.7,0.56888496]
[1763789340749,0.405504,2739.9,2739.8,0.124]
[1763789341237,1.357004,2739.9,2739.8,0.124]
[1763789343300,0.196,2740.8,2739.8,4.7609661]
[1763789343496,0.4807,2740.7,2739.9,1.47378851]
[1763789343702,0.405504,2740.6,2739.9,0.56679587]
[1763789344002,0.4708,2740.0,2739.9,0.56679587]
[1763789344202,0.876304,2740.0,2739.9,0.124]
[1763789345048,0.405504,2739.9,2739.7,0.90699264]
[1763789345203,0.2008,2739.8,2739.6,0.001]
[1763789345399,0.466,2739.7,2739.6,0.001]
[1763789345598,0.405504,2739.8,2739.7,0.124]
[1763789345830,0.405504,2739.8,2739.7,0.59232921]
[1763789346012,1.362504,2739.8,2739.7,0.124]
[1763789347463,1.362504,2739.8,2739.6,0.001]
[1763789347464,0.405504,2739.7,2739.6,0.001]
[1763789347644,0.405504,2739.7,2739.6,0.125]
[1763789347645,0.907404,2739.7,2739.6,0.125]
[1763789350648,0.0046,2739.7,2739.6,0.125]
[1763789350973,0.405504,2739.9,2739.6,0.6175]
[1763789351272,0.4973,2740.5,2739.8,0.4925]
[1763789351476,0.4973,2740.5,2740.1,4.93702028]
[1763789351669,0.4973,2740.7,2740.2,0.124]
[1763789351877,0.405504,2740.6,2740.2,0.124]
[1763789352250,0.405504,2740.7,2740.2,3.77335907]
[1763789352472,0.902804,2740.7,2740.3,0.88977794]
[1763789352664,0.4973,2740.7,2740.3,0.88977794]
[1763789352860,0.405504,2740.3,2740.2,0.124]
[1763789353180,0.005,2740.3,2740.2,0.124]
[1763789353482,0.907804,2740.3,2740.2,0.124]
[1763789355153,0.405504,2740.2,2739.6,0.90799264]
[1763789355352,0.405504,2739.9,2739.7,0.124]
[1763789355555,0.405504,2739.9,2739.7,0.51799224]
[1763789355765,0.405504,2739.7,2739.6,0.001]
[1763789355943,0.410504,2739.7,2739.6,0.125]
[1763789356139,0.5023,2739.7,2739.6,0.125]
[1763789356546,0.005,2739.7,2739.6,0.125]
[1763789356854,0.405504,2740.1,2739.6,0.6175]
[1763789357176,0.405504,2740.6,2739.8,0.90699264]
[1763789357375,0.4973,2740.6,2740.0,0.4925]
[1763789357563,0.4973,2740.6,2740.1,0.124]
[1763789357761,0.4973,2740.5,2740.1,0.124]
[1763789358138,0.405504,2740.4,2740.1,0.124]
[1763789358577,0.4598,2740.2,2740.1,0.124]
[1763789359077,0.196,2740.8,2740.1,0.8039]
[1763789359377,0.4973,2741.1,2740.2,1.49949264]
[1763789359582,0.4973,2741.1,2740.3,1.4543543]
[1763789359879,0.002,2741.3,2740.6,0.90699264]
[1763789360096,0.002,2741.3,2740.7,0.124]
[1763789360381,0.2764,2740.7,2740.3,1.4543543]
[1763789360599,0.1906,2740.9,2740.4,0.123]
[1763789360738,0.902804,2740.8,2740.4,0.123]
[1763789361393,0.002,2741.0,2740.7,0.4925]
[1763789361677,0.405504,2740.7,2740.2,4.65633208]
[1763789361842,0.405504,2740.7,2740.3,1.3926917]
[1763789362051,0.405504,2740.7,2740.4,0.123]
[1763789362253,0.405504,2740.8,2740.4,0.123]
[1763789362684,0.405504,2740.8,2740.4,0.6197]
[1763789362870,0.405504,2740.8,2740.5,0.90699264]
[1763789363068,0.405504,2740.8,2740.6,0.51757914]
[1763789363269,0.902804,2740.8,2740.6,0.51757914]
[1763789363448,0.902804,2740.8,2740.3,1.3926917]
[1763789363449,0.405504,2740.6,2740.3,1.3926917]
[1763789363649,0.405504,2740.6,2740.4,0.123]
[1763789363851,0.405504,2740.8,2740.5,0.4925]
[1763789364293,0.405504,2740.9,2740.5,1.89619264]
[1763789364467,1.093404,2740.9,2740.6,0.57682838]
[1763789364669,1.093404,2740.9,2740.7,0.123]
[1763789364994,0.902804,2740.8,2740.7,0.123]
[1763789365153,1.367904,2740.8,2740.7,0.123]
[1763789366597,0.405504,2740.8,2740.7,0.6155]
[1763789366768,0.002,2741.0,2740.7,0.6155]
[1763789366955,0.1906,2740.9,2740.8,0.42642563]
[1763789367161,0.405504,2740.8,2740.7,0.123]
[1763789367560,0.405504,2740.8,2740.7,0.6155]
[1763789368586,0.901104,2740.8,2740.7,0.123]
[1763789368784,0.405504,2740.7,2740.4,0.001]
[1763789368974,0.872304,2740.7,2740.5,0.123]
[1763789369293,0.900804,2740.7,2740.5,0.123]
[1763789369497,0.4651,2740.6,2740.5,0.123]
[1763789371103,0.002,2741.0,2740.5,1.1122]
[1763789371269,0.405504,2740.9,2740.6,1.52249264]
[1763789371465,0.405504,2740.9,2740.7,0.51714481]
[1763789371697,1.093404,2740.9,2740.6,0.6155]
[1763789371898,1.093404,2740.9,2740.6,0.123]
[1763789372313,0.596104,2740.9,2740.6,0.123]
[1763789372483,0.002,2741.0,2740.8,0.4925]
[1763789372900,0.002,2741.0,2740.9,0.4925]
[1763789373284,0.002,2741.0,2740.9,5.54462928]
[1763789373503,0.002,2741.0,2740.9,6.46395981]
[1763789373813,0.002,2741.0,2740.9,2.44182317]
[1763789374013,0.002,2741.0,2740.9,1.52249264]
[1763789375220,0.4671,2741.0,2740.9,0.90699264]
[1763789375520,1.369604,2741.0,2740.9,1.02999264]
[1763789377619,1.369604,2741.0,2740.4,0.001]
[1763789377822,0.405504,2740.8,2740.5,0.123]
[1763789378115,0.405504,2740.8,2740.5,1.02999264]
[1763789378330,0.405504,2740.8,2740.6,0.46800697]
[1763789379020,0.878804,2740.7,2740.6,0.46800697]
[1763789379226,0.405504,2740.6,2740.4,0.001]
[1763789379519,0.878804,2740.5,2740.4,0.001]
[1763789379678,0.878804,2740.5,2740.4,0.124]
[1763789380127,1.340204,2740.5,2740.4,0.124]
[1763789381006,0.878804,2740.5,2740.4,0.124]
[1763789381208,1.340204,2740.5,2740.4,0.124]
[1763789383131,0.878804,2740.5,2740.4,0.124]
[1763789383300,1.340204,2740.5,2740.4,0.124]
[1763789385422,0.878804,2740.5,2740.4,0.124]
[1763789386235,0.405504,2740.5,2740.4,0.124]
[1763789386634,0.6452,2740.9,2740.4,0.6154]
[1763789386839,0.6452,2740.9,2740.4,1.1018]
[1763789387042,0.1838,2740.9,2740.4,1.1018]
[1763789387218,0.405504,2740.8,2740.4,1.1018]
[1763789388042,0.866904,2740.8,2740.4,0.6154]
[1763789388226,0.866904,2740.8,2740.4,0.124]
[1763789388421,0.405504,2740.5,2740.4,0.124]
[1763789388836,0.405504,2740.5,2740.4,0.6154]
[1763789389212,0.405504,2740.5,2740.4,1.66761443]
[1763789390859,0.878804,2740.5,2740.4,0.124]
[1763789391012,0.405504,2740.5,2740.4,0.6154]
[1763789392055,0.405504,2740.5,2740.4,1.52239264]
[1763789393134,0.405504,2740.5,2740.4,5.17149496]
[1763789394175,0.405504,2740.5,2740.4,5.65789496]
[1763789394335,0.405504,2740.5,2740.4,6.58862009]
[1763789396251,0.405504,2740.5,2740.4,2.45311777]
[1763789396571,0.405504,2740.5,2740.4,1.39939264]
[1763789396869,0.405504,2740.5,2740.4,1.52239264]
[1763789397787,0.405504,2740.5,2740.4,8.43107092]
[1763789398961,0.405504,2740.5,2740.4,4.2955686]
[1763789400475,0.405504,2740.5,2740.4,8.43107092]
[1763789400662,0.405504,2740.5,2740.4,5.9899991]
[1763789401200,0.405504,2740.5,2740.4,5.5035991]
[1763789401360,0.405504,2740.5,2740.4,9.15270142]
[1763789401556,0.405504,2740.5,2740.4,5.5035991]
[1763789401754,0.405504,2740.5,2740.4,5.3805991]
[1763789401958,1.340204,2740.5,2740.4,3.8041686]
[1763789402390,0.878804,2740.5,2740.4,3.6811686]
[1763789402596,0.405504,2740.5,2740.4,4.2955686]
[1763789402804,0.405504,2740.5,2740.4,7.94467092]
[1763789403000,0.405504,2740.5,2740.4,8.43107092]
[1763789403201,0.405504,2740.5,2740.4,4.7819686]
[1763789403355,0.405504,2740.5,2740.4,5.9696796]
[1763789403559,0.405504,2740.5,2740.4,0.001]
[1763789403560,1.340204,2740.5,2740.4,0.001]
[1763789403788,1.340204,2740.5,2740.4,0.124]
[1763789404007,1.340204,2740.5,2740.4,0.001]
[1763789404868,0.878804,2740.5,2740.4,0.124]
[1763789405675,0.405504,2740.5,2740.4,0.5866]
[1763789406196,0.002,2741.0,2740.4,1.169]
[1763789406401,0.002,2741.0,2740.4,1.66159926]
[1763789406597,0.002,2741.0,2740.4,1.069]
[1763789406897,0.002,2741.0,2740.6,0.90699264]
[1763789407264,0.002,2741.0,2740.6,1.38939264]
[1763789407705,0.002,2741.0,2740.9,0.4626]
[1763789407906,0.002,2741.0,2740.9,0.5856]
[1763789408265,0.002,2741.0,2740.9,1.068]
[1763789408610,0.002,2741.0,2740.9,5.69070843]
[1763789408776,0.002,2741.0,2740.9,6.72237927]
[1763789409105,0.002,2741.0,2740.9,10.37081591]
[1763789409462,0.002,2741.0,2740.9,10.85321591]
[1763789409673,0.002,2741.0,2740.9,10.95321591]
[1763789409965,0.002,2741.3,2741.0,0.90699264]
[1763789410163,0.002,2741.6,2741.4,0.1]